Workbook

Sheet HoltC932
A1: počáteční hodnoty | B1: alfa = | C1: 0.75 | D1: gama = | E1: 0.25
A2: počáteční hodnoty jsou určeny jako L0=yt , T0=y2-y1
F3: L0 | G3: T0 | H3: =(H8+H12+H16+H20+H24+H28+H32+H36+H40+H44+H48+H52+H56)/13 -> 0 | I3: S01
F4: =C8 -> 6.55 | G4: =C9-C8 -> 0.45 | H4: =(H9+H13+H17+H21+H25+H29+H33+H37+H41+H45+H49+H53+H57)/13 -> 0 | I4: S02
H5: =(H10+H14+H18+H22+H26+H30+H34+H38+H42+H46+H50+H54+H58)/12 -> 0 | I5: S03
H6: =(H11+H15+H19+H23+H27+H31+H35+H39+H43+H47+H51+H55+H59)/13 -> 0 | I6: S04
A7: DATE | B7: NOBS | C7: REVENUE | D7: rezidua | E7: HOLT | F7: Lt | G7: Tt | I7: abs.rezidua | J7: rezidua2
A8: 2000Q2 | B8: 1 | C8: 6.55 | D8: =C8-E8 -> 0 | E8: =F4 -> 6.55 | F8: =$C$1*(C8)+(1-$C$1)*(F4+G4) -> 6.6625 | G8: =$E$1*(F8-F4)+(1-$E$1)*G4 -> 0.365625 | I8: =ABS(D8) -> 0 | J8: =D8*D8 -> 0
A9: 2000Q3 | B9: =B8+1 -> 2 | C9: 7 | D9: -0.00703125 | E9: =F9 -> 7.00703125 | F9: =$C$1*(C9)+(1-$C$1)*(F8+G8) -> 7.00703125 | G9: =$E$1*(F9-F8)+(1-$E$1)*G8 -> 0.3603515625 | I9: 0.00703125 | J9: 4.943847656e-05
A10: 2000Q4 | B10: 3 | C10: 7.38 | D10: 0.003154296875 | E10: 7.376845703 | F10: =$C$1*(C10)+(1-$C$1)*(F9+G9) -> 7.376845703 | G10: 0.3627172852 | I10: 0.003154296875 | J10: 9.949588776e-06
A11: 2001Q1 | B11: 4 | C11: 6.24 | D11: -0.3748907471 | E11: 6.614890747 | F11: =$C$1*C11+(1-$C$1)*(F10+G10) -> 6.614890747 | G11: 0.08154922485 | I11: 0.3748907471 | J11: 0.1405430722
A12: 2001Q2 | B12: 5 | C12: 6.72 | D12: 0.005890007019 | E12: 6.714109993 | F12: 6.714109993 | G12: 0.08596673012 | I12: 0.005890007019 | J12: 3.469218268e-05
A13: 2001Q3 | B13: 6 | C13: 6.47 | D13: -0.08251918077 | E13: 6.552519181 | F13: 6.552519181 | G13: 0.02407734454 | I13: 0.08251918077 | J13: 0.006809415196
A14: 2001Q4 | B14: 7 | C14: 5.43 | D14: -0.2866491313 | E14: 5.716649131 | F14: 5.716649131 | G14: -0.190909504 | I14: 0.2866491313 | J14: 0.08216772449
A15: 2002Q1 | B15: 8 | C15: 5.55 | D15: 0.006065093158 | E15: 5.543934907 | F15: 5.543934907 | G15: =$E$1*(F15-F14)+(1-$E$1)*G14 -> -0.1863606841 | I15: 0.006065093158 | J15: 3.678535501e-05
A16: 2002Q2 | B16: 9 | C16: 5.13 | D16: -0.05689355569 | E16: 5.186893556 | F16: 5.186893556 | G16: -0.2290308509 | I16: 0.05689355569 | J16: 0.003236876679
A17: 2002Q3 | B17: 10 | C17: 4.48 | D17: -0.1194656762 | E17: =F17+L17 -> 4.599465676 | F17: 4.599465676 | G17: -0.318630108 | I17: 0.1194656762 | J17: 0.01427204779
A18: 2002Q4 | B18: 11 | C18: 4.15 | D18: -0.03270889205 | E18: 4.182708892 | F18: 4.182708892 | G18: -0.343161777 | I18: 0.03270889205 | J18: 0.001069871619
A19: 2003Q1 | B19: 12 | C19: 3.75 | D19: -0.02238677875 | E19: 3.772386779 | F19: 3.772386779 | G19: -0.3599518611 | I19: 0.02238677875 | J19: 0.0005011678628
A20: 2003Q2 | B20: 13 | C20: 3.49 | D20: 0.01939127059 | E20: 3.470608729 | F20: 3.470608729 | G20: -0.3454084082 | I20: 0.01939127059 | J20: 0.0003760213751
A21: 2003Q3 | B21: 14 | C21: 4.26 | D21: 0.2836999197 | E21: 3.97630008 | F21: 3.97630008 | G21: -0.1326334684 | I21: 0.2836999197 | J21: 0.08048564443
A22: 2003Q4 | B22: 15 | C22: 4.82 | D22: 0.244083347 | E22: 4.575916653 | F22: 4.575916653 | G22: 0.05042904187 | I22: 0.244083347 | J22: 0.05957668029
A23: 2004Q1 | B23: 16 | C23: 4.5 | D23: -0.03158642371 | E23: 4.531586424 | F23: 4.531586424 | G23: 0.02673922408 | I23: 0.03158642371 | J23: 0.0009977021628
A24: 2004Q2 | B24: 17 | C24: 5.02 | D24: 0.1154185881 | E24: 4.904581412 | F24: 4.904581412 | G24: 0.1133031651 | I24: 0.1154185881 | J24: 0.01332145047
A25: 2004Q3 | B25: 18 | C25: 5.02 | D25: 0.0005288557326 | E25: 5.019471144 | F25: 5.019471144 | G25: 0.1136998069 | I25: 0.0005288557326 | J25: 2.796883859e-07
A26: 2004Q4 | B26: 19 | C26: 4.04 | D26: -0.2732927378 | E26: 4.313292738 | F26: 4.313292738 | G26: -0.09126974643 | I26: 0.2732927378 | J26: 0.07468892053
A27: 2005Q1 | B27: 20 | C27: 3.62 | D27: -0.1505057478 | E27: 3.770505748 | F27: 3.770505748 | G27: -0.2041490573 | I27: 0.1505057478 | J27: 0.02265198013
A28: 2005Q2 | B28: 21 | C28: 3.31 | D28: -0.06408917263 | E28: 3.374089173 | F28: 3.374089173 | G28: -0.2522159368 | I28: 0.06408917263 | J28: 0.004107422049
A29: 2005Q3 | B29: 22 | C29: 3.26 | D29: 0.03453169104 | E29: 3.225468309 | F29: 3.225468309 | G29: -0.2263171685 | I29: 0.03453169104 | J29: 0.001192437686
A30: 2005Q4 | B30: 23 | C30: 3.61 | D30: 0.1527122149 | E30: 3.457287785 | F30: 3.457287785 | G30: -0.1117830073 | I30: 0.1527122149 | J30: 0.02332102058
A31: 2006Q1 | B31: 24 | C31: 3.57 | D31: 0.05612380556 | E31: 3.513876194 | F31: 3.513876194 | G31: -0.06969015317 | I31: 0.05612380556 | J31: 0.00314988155
A32: 2006Q2 | B32: 25 | C32: 4.05 | D32: 0.1514534897 | E32: 3.89854651 | F32: 3.89854651 | G32: 0.04389996409 | I32: 0.1514534897 | J32: 0.02293815954
A33: 2006Q3 | B33: 26 | C33: 3.9 | D33: -0.0106116186 | E33: 3.910611619 | F33: 3.910611619 | G33: 0.03594125014 | I33: 0.0106116186 | J33: 0.0001126064493
A34: 2006Q4 | B34: 27 | C34: 3.68 | D34: -0.06663821718 | E34: 3.746638217 | F34: 3.746638217 | G34: -0.01403741275 | I34: 0.06663821718 | J34: 0.00444065199
A35: 2007Q1 | B35: 28 | C35: 3.76 | D35: 0.006849798892 | E35: 3.753150201 | F35: 3.753150201 | G35: -0.008900063583 | I35: 0.006849798892 | J35: 4.691974486e-05
A36: 2007Q2 | B36: 29 | C36: 4.53 | D36: 0.1964374656 | E36: 4.333562534 | F36: 4.333562534 | G36: 0.1384280356 | I36: 0.1964374656 | J36: 0.0385876779
A37: 2007Q3 | B37: 30 | C37: 4.54 | D37: 0.0170023575 | E37: 4.522997643 | F37: 4.522997643 | G37: 0.1511798038 | I37: 0.0170023575 | J37: 0.0002890801604
A38: 2007Q4 | B38: 31 | E38: 1.168544362 | F38: 1.168544362 | G38: -0.7252284674 | I38: 0 | J38: 0
B39: 32 | I39: 0 | J39: 0
C40: =SUM(C8:C39)/30 -> 4.727666667 | D40: =SUM(D8:D39)/30 -> -0.009530897611 | E40: =SUM(E8:E39) -> 143.2844713 | I40: =SUM(I8:I39)/30 -> 0.09575371103 | J40: =SUM(J8:J39)/30 -> 0.01996718594
C41: yprum | D41: ME | I41: MAE | J41: MSE

Sheet HoltC943
A1: počáteční hodnoty | B1: alfa = | C1: 0.4 | D1: gama = | E1: 0.1
A2: počáteční hodnoty jsou určeny jako L0=yt , T0=y2-y1
F3: L0 | G3: T0 | H3: =(H8+H12+H16+H20+H24+H28+H32+H36+H40+H44+H48+H52+H56)/13 -> 0 | I3: S01
F4: =C8 -> 332995 | G4: =C9-C8 -> 33623 | H4: =(H9+H13+H17+H21+H25+H29+H33+H37+H41+H45+H49+H53+H57)/13 -> 0 | I4: S02
H5: =(H10+H14+H18+H22+H26+H30+H34+H38+H42+H46+H50+H54+H58)/12 -> 0 | I5: S03
H6: =(H11+H15+H19+H23+H27+H31+H35+H39+H43+H47+H51+H55+H59)/13 -> 0 | I6: S04
A7: DATE | B7: NOBS | C7: HDPCR | D7: rezidua | E7: HOLT | F7: Lt | G7: Tt | I7: abs.rezidua | J7: rezidua2
A8: 1995Q1 | B8: 1 | C8: 332995 | D8: =C8-E8 -> -20173.8 | E8: =F8+L8 -> 353168.8 | F8: =$C$1*(C8)+(1-$C$1)*(F4+G4) -> 353168.8 | G8: =$E$1*(F8-F4)+(1-$E$1)*G4 -> 32278.08 | I8: =ABS(D8) -> 20173.8 | J8: =D8*D8 -> 406982206.4
A9: 1995Q2 | B9: =B8+1 -> 2 | C9: 366618 | D9: -11297.328 | E9: =F9 -> 377915.328 | F9: =$C$1*(C9)+(1-$C$1)*(F8+G8) -> 377915.328 | G9: =$E$1*(F9-F8)+(1-$E$1)*G8 -> 31524.9248 | I9: 11297.328 | J9: 127629619.9
A10: 1995Q3 | B10: 3 | C10: 376688 | D10: -19651.35168 | E10: =F10 -> 396339.3517 | F10: =$C$1*(C10)+(1-$C$1)*(F9+G9) -> 396339.3517 | G10: 30214.83469 | I10: 19651.35168 | J10: 386175622.9
A11: 1995Q4 | B11: 4 | C11: 390221 | D11: -21799.91182 | E11: 412020.9118 | F11: 412020.9118 | G11: 28761.50723 | I11: 21799.91182 | J11: 475236155.4
A12: 1996Q1 | B12: 5 | C12: 382859 | D12: -34754.05143 | E12: 417613.0514 | F12: =$C$1*(C12)+(1-$C$1)*(F11+G11) -> 417613.0514 | G12: 26444.57047 | I12: 34754.05143 | J12: 1207844091
A13: 1996Q2 | B13: 6 | C13: 423953 | D13: -12062.77314 | E13: 436015.7731 | F13: 436015.7731 | G13: 25640.38559 | I13: 12062.77314 | J13: 145510495.9
A14: 1996Q3 | B14: 7 | C14: 432152 | D14: -17702.49524 | E14: 449854.4952 | F14: 449854.4952 | G14: 24460.21925 | I14: 17702.49524 | J14: 313378337.8
A15: 1996Q4 | B15: 8 | C15: 444324 | D15: -17994.42869 | E15: 462318.4287 | F15: 462318.4287 | G15: 23260.59067 | I15: 17994.42869 | J15: 323799464
A16: 1997Q1 | B16: 9 | C16: 415593 | D16: -41991.61162 | E16: 457584.6116 | F16: =$C$1*(C16)+(1-$C$1)*(F15+G15) -> 457584.6116 | G16: 20461.14989 | I16: 41991.61162 | J16: 1763295446
A17: 1997Q2 | B17: 10 | C17: 455790 | D17: -13353.4569 | E17: =F17+L17 -> 469143.4569 | F17: 469143.4569 | G17: 19570.91943 | I17: 13353.4569 | J17: 178314811.3
A18: 1997Q3 | B18: 11 | C18: 461902 | D18: -16087.4258 | E18: 477989.4258 | F18: 477989.4258 | G18: 18498.42438 | I18: 16087.4258 | J18: 258805268.9
A19: 1997Q4 | B19: 12 | C19: 477809 | D19: -11207.31011 | E19: 489016.3101 | F19: 489016.3101 | G19: 17751.27037 | I19: 11207.31011 | J19: 125603799.8
A20: 1998Q1 | B20: 13 | C20: 457925 | D20: -29305.54829 | E20: 487230.5483 | F20: =$C$1*(C20)+(1-$C$1)*(F19+G19) -> 487230.5483 | G20: 15797.56715 | I20: 29305.54829 | J20: 858815160.4
A21: 1998Q2 | B21: 14 | C21: 512225 | D21: 5518.130737 | E21: 506706.8693 | F21: 506706.8693 | G21: 16165.44253 | I21: 5518.130737 | J21: 30449766.83
A22: 1998Q3 | B22: 15 | C22: 512408 | D22: -6278.587078 | E22: 518686.5871 | F22: 518686.5871 | G22: 15746.87006 | I22: 6278.587078 | J22: 39420655.7
A23: 1998Q4 | B23: 16 | C23: 513925 | D23: -12305.07428 | E23: 526230.0743 | F23: 526230.0743 | G23: 14926.53178 | I23: 12305.07428 | J23: 151414853.1
A24: 1999Q1 | B24: 17 | C24: 481895 | D24: -35556.96364 | E24: 517451.9636 | F24: =$C$1*(C24)+(1-$C$1)*(F23+G23) -> 517451.9636 | G24: 12556.06753 | I24: 35556.96364 | J24: 1264297663
A25: 1999Q2 | B25: 18 | C25: 532968 | D25: 1775.981298 | E25: 531192.0187 | F25: 531192.0187 | G25: 12674.46629 | I25: 1775.981298 | J25: 3154109.569
A26: 1999Q3 | B26: 19 | C26: 529465 | D26: -8640.890994 | E26: 538105.891 | F26: 538105.891 | G26: 12098.40689 | I26: 8640.890994 | J26: 74664997.17
A27: 1999Q4 | B27: 20 | C27: 536469 | D27: -8241.178729 | E27: 544710.1787 | F27: 544710.1787 | G27: 11548.99497 | I27: 8241.178729 | J27: 67917026.84
A28: 2000Q1 | B28: 21 | C28: 504479 | D28: -31068.10422 | E28: 535547.1042 | F28: =$C$1*(C28)+(1-$C$1)*(F27+G27) -> 535547.1042 | G28: 9477.788024 | I28: 31068.10422 | J28: 965227099.9
A29: 2000Q2 | B29: 22 | C29: 558691 | D29: 8199.664653 | E29: 550491.3353 | F29: 550491.3353 | G29: 10024.43233 | I29: 8199.664653 | J29: 67234500.42
A30: 2000Q3 | B30: 23 | C30: 557780 | D30: -1641.460609 | E30: 559421.4606 | F30: 559421.4606 | G30: 9915.001627 | I30: 1641.460609 | J30: 2694392.931
A31: 2000Q4 | B31: 24 | C31: 568219 | D31: -670.4773418 | E31: 568889.4773 | F31: 568889.4773 | G31: 9870.303138 | I31: 670.4773418 | J31: 449539.8659
A32: 2001Q1 | B32: 25 | C32: 540124 | D32: -23181.46829 | E32: 563305.4683 | F32: =$C$1*(C32)+(1-$C$1)*(F31+G31) -> 563305.4683 | G32: 8324.871919 | I32: 23181.46829 | J32: 537380472
A33: 2001Q2 | B33: 26 | C33: 598842 | D33: 16326.99588 | E33: 582515.0041 | F33: 582515.0041 | G33: 9413.33831 | I33: 16326.99588 | J33: 266570794.3
A34: 2001Q3 | B34: 27 | C34: 599262 | D34: 4400.194539 | E34: 594861.8055 | F34: 594861.8055 | G34: 9706.684613 | I34: 4400.194539 | J34: 19361711.98
A35: 2001Q4 | B35: 28 | C35: 613986 | D35: 5650.505956 | E35: 608335.494 | F35: 608335.494 | G35: 10083.38501 | I35: 5650.505956 | J35: 31928217.56
A36: 2002Q1 | B36: 29 | C36: 576665 | D36: -25052.32743 | E36: 601717.3274 | F36: =$C$1*(C36)+(1-$C$1)*(F35+G35) -> 601717.3274 | G36: 8413.229848 | I36: 25052.32743 | J36: 627619109.8
A37: 2002Q2 | B37: 30 | C37: 630141 | D37: 12006.26563 | E37: 618134.7344 | F37: 618134.7344 | G37: 9213.647557 | I37: 12006.26563 | J37: 144150414.4
A38: 2002Q3 | B38: 31 | C38: 621004 | D38: -3806.629155 | E38: 624810.6292 | F38: 624810.6292 | G38: 8959.87228 | I38: 3806.629155 | J38: 14490425.52
A39: 2002Q4 | B39: 32 | C39: 636622 | D39: 1710.899139 | E39: 634911.1009 | F39: 634911.1009 | G39: 9073.932222 | I39: 1710.899139 | J39: 2927175.864
A40: 2003Q1 | B40: 33 | C40: 598385 | D40: -27360.01985 | E40: 625745.0198 | F40: =$C$1*(C40)+(1-$C$1)*(F39+G39) -> 625745.0198 | G40: 7249.930899 | I40: =ABS(D40) -> 27360.01985 | J40: =D40*D40 -> 748570686.2
A41: 2003Q2 | B41: 34 | C41: 660401 | D41: 16443.62955 | E41: 643957.3704 | F41: 643957.3704 | G41: 8346.172869 | I41: 16443.62955 | J41: 270392952.8
A42: 2003Q3 | B42: 35 | C42: 650791 | D42: -907.525991 | E42: 651698.526 | F42: 651698.526 | G42: 8285.671136 | I42: 907.525991 | J42: 823603.4244
A43: 2003Q4 | B43: 36 | C43: 667533 | D43: 4529.281724 | E43: 663003.7183 | F43: 663003.7183 | G43: 8587.623251 | I43: 4529.281724 | J43: 20514392.93
A44: 2004Q1 | B44: 37 | C44: 650616 | D44: -12585.20492 | E44: 663201.2049 | F44: =$C$1*(C44)+(1-$C$1)*(F43+G43) -> 663201.2049 | G44: 7748.60959 | I44: 12585.20492 | J44: 158387382.8
A45: 2004Q2 | B45: 38 | C45: 716444 | D45: 27296.5113 | E45: 689147.4887 | F45: 689147.4887 | G45: 9568.37701 | I45: 27296.5113 | J45: 745099528.9
A46: 2004Q3 | B46: 39 | C46: 712711 | D46: 8397.080572 | E46: 704313.9194 | F46: 704313.9194 | G46: 10128.18238 | I46: 8397.080572 | J46: 70510962.13
A47: 2004Q4 | B47: 40 | C47: 737591 | D47: 13889.33891 | E47: 723701.6611 | F47: 723701.6611 | G47: 11054.13831 | I47: 13889.33891 | J47: 192913735.5
A48: 2005Q1 | B48: 41 | C48: 697345 | D48: -22446.47964 | E48: 719791.4796 | F48: =$C$1*(C48)+(1-$C$1)*(F47+G47) -> 719791.4796 | G48: 9557.706333 | I48: 22446.47964 | J48: 503844448.1
A49: 2005Q2 | B49: 42 | C49: 762115 | D49: 19659.48842 | E49: 742455.5116 | F49: 742455.5116 | G49: 10868.33889 | I49: 19659.48842 | J49: 386495484.9
A50: 2005Q3 | B50: 43 | C50: 756632 | D50: 1984.889714 | E50: 754647.1103 | F50: 754647.1103 | G50: 11000.66488 | I50: 1984.889714 | J50: 3939787.178
A51: 2005Q4 | B51: 44 | C51: 778304 | D51: 7593.734903 | E51: 770710.2651 | F51: 770710.2651 | G51: 11506.91387 | I51: 7593.734903 | J51: 57664809.78
A52: 2006Q1 | B52: 45 | C52: 742621 | D52: -23757.70738 | E52: 766378.7074 | F52: =$C$1*(C52)+(1-$C$1)*(F51+G51) -> 766378.7074 | G52: 9923.06671 | I52: 23757.70738 | J52: 564428659.9
A53: 2006Q2 | B53: 46 | C53: 861462 | D53: 51096.13555 | E53: 810365.8645 | F53: 810365.8645 | G53: 13329.47575 | I53: 51096.13555 | J53: 2610815068
A54: 2006Q3 | B54: 47 | C54: 820093 | D54: -2161.40412 | E54: 822254.4041 | F54: 822254.4041 | G54: 13185.38214 | I54: 2161.40412 | J54: 4671667.771
A55: 2006Q4 | B55: 48 | C55: 841083 | D55: 3385.928245 | E55: 837697.0718 | F55: 837697.0718 | G55: 13411.11069 | I55: 3385.928245 | J55: 11464510.08
A56: 2007Q1 | B56: 49 | C56: 817704 | D56: -20042.50947 | E56: 837746.5095 | F56: =$C$1*(C56)+(1-$C$1)*(F55+G55) -> 837746.5095 | G56: 12074.94339 | I56: 20042.50947 | J56: 401702185.7
A57: 2007Q2 | B57: 50 | C57: 899674 | D57: 29911.52829 | E57: 869762.4717 | F57: 869762.4717 | G57: 14069.04528 | I57: 29911.52829 | J57: 894699524.4
A58: 2007Q3 | B58: 51 | F58: 530298.9102 | I58: 0 | J58: 0
A59: 2007Q4 | B59: 52 | F59: 318179.3461 | I59: 0 | J59: 0
C60: =SUM(C8:C59)/50 -> 588310.08 | D60: =SUM(D8:D59)/50 -> -5866.186417 | E60: =SUM(E8:E59) -> 29708813.32 | I60: =SUM(I8:I59)/50 -> 15457.23382 | J60: =SUM(J8:J59)/50 -> 370593655.9
C61: yprum | D61: ME | I61: MAE | J61: MSE

Sheet HoltC913
A1: počáteční hodnoty | B1: alfa = | C1: 0.4 | D1: gama = | E1: 0.1
A2: počáteční hodnoty jsou určeny jako L0=yt , T0=y2-y1
F3: L0 | G3: T0 | H3: =(H8+H12+H16+H20+H24+H28+H32+H36+H40+H44+H48+H52+H56)/13 -> 0 | I3: S01
F4: =C8 -> 179342.9 | G4: =C9-C8 -> 536.7 | H4: =(H9+H13+H17+H21+H25+H29+H33+H37+H41+H45+H49+H53+H57)/13 -> 0 | I4: S02
H5: =(H10+H14+H18+H22+H26+H30+H34+H38+H42+H46+H50+H54+H58)/12 -> 0 | I5: S03
H6: =(H11+H15+H19+H23+H27+H31+H35+H39+H43+H47+H51+H55+H59)/13 -> 0 | I6: S04
A7: QUARTER | B7: NOBS | C7: DEPOSITS | D7: rezidua | E7: HOLT | F7: Lt | G7: Tt | I7: abs.rezidua | J7: rezidua2
A8: 1993Q1 | B8: 1 | C8: 179342.9 | D8: =C8-E8 -> -322.02 | E8: =F8+L8 -> 179664.92 | F8: =$C$1*(C8)+(1-$C$1)*(F4+G4) -> 179664.92 | G8: =$E$1*(F8-F4)+(1-$E$1)*G4 -> 515.232 | I8: =ABS(D8) -> 322.02 | J8: =D8*D8 -> 103696.8804
A9: 1993Q2 | B9: 2 | C9: 179879.6 | D9: -180.3312 | E9: =F9 -> 180059.9312 | F9: =$C$1*(C9)+(1-$C$1)*(F8+G8) -> 180059.9312 | G9: =$E$1*(F9-F8)+(1-$E$1)*G8 -> 503.20992 | I9: 180.3312 | J9: 32519.34169
A10: 1993Q3 | B10: =B9+1 -> 3 | C10: 184157.9 | D10: 2156.855328 | E10: 182001.0447 | F10: 182001.0447 | G10: 647.0002752 | I10: 2156.855328 | J10: 4652024.906
A11: 1993Q4 | B11: =B10+1 -> 4 | C11: 204782.7 | D11: 13280.79303 | E11: 191501.907 | F11: 191501.907 | G11: 1532.386477 | I11: 13280.79303 | J11: 176379463.6
A12: 1994Q1 | B12: =B11+1 -> 5 | C12: 215145.3 | D12: 13266.60393 | E12: 201878.6961 | F12: 201878.6961 | G12: 2416.826739 | I12: 13266.60393 | J12: 176002779.9
A13: 1994Q2 | B13: 6 | C13: 220120.4 | D13: 9494.926316 | E13: 210625.4737 | F13: 210625.4737 | G13: 3049.821827 | I13: 9494.926316 | J13: 90153625.74
A14: 1994Q3 | B14: 7 | C14: 224857.6 | D14: 6709.382693 | E14: 218148.2173 | F14: 218148.2173 | G14: 3497.114007 | I14: 6709.382693 | J14: 45015816.12
A15: 1994Q4 | B15: 8 | C15: 244498.9 | D15: 13712.14121 | E15: 230786.7588 | F15: 230786.7588 | G15: 4411.256754 | I15: 13712.14121 | J15: 188022816.6
A16: 1995Q1 | B16: 9 | C16: 257013.4 | D16: 13089.23067 | E16: 243924.1693 | F16: 243924.1693 | G16: 5283.872133 | I16: 13089.23067 | J16: 171327959.7
A17: 1995Q2 | B17: 10 | C17: 268251.6 | D17: 11426.13513 | E17: =F17+L17 -> 256825.4649 | F17: 256825.4649 | G17: 6045.614474 | I17: 11426.13513 | J17: 130556563.9
A18: 1995Q3 | B18: 11 | C18: 280707.7 | D18: 10701.97239 | E18: 270005.7276 | F18: 270005.7276 | G18: 6759.0793 | I18: 10701.97239 | J18: 114532213
A19: 1995Q4 | B19: 12 | C19: 306236.9 | D19: 17683.25585 | E19: 288553.6441 | F19: 288553.6441 | G19: 7937.963024 | I19: 17683.25585 | J19: 312697537.6
A20: 1996Q1 | B20: 13 | C20: 320848.6 | D20: 14614.1957 | E20: 306234.4043 | F20: 306234.4043 | G20: 8912.242737 | I20: 14614.1957 | J20: 213574715.9
A21: 1996Q2 | B21: 14 | C21: 329595.1 | D21: 8669.071777 | E21: 320926.0282 | F21: 320926.0282 | G21: 9490.180856 | I21: 8669.071777 | J21: 75152805.47
A22: 1996Q3 | B22: 15 | C22: 336112.3 | D22: 3417.654553 | E22: 332694.6454 | F22: 332694.6454 | G22: 9718.024492 | I22: 3417.654553 | J22: 11680362.64
A23: 1996Q4 | B23: 16 | C23: 365625.2 | D23: 13927.51804 | E23: 351697.682 | F23: 351697.682 | G23: 10646.52569 | I23: 13927.51804 | J23: 193975758.6
A24: 1997Q1 | B24: 17 | C24: 414840.1 | D24: 31497.5354 | E24: 383342.5646 | F24: 383342.5646 | G24: 12746.36139 | I24: 31497.5354 | J24: 992094736.6
A25: 1997Q2 | B25: 18 | C25: 441183 | D25: 27056.44441 | E25: 414126.5556 | F25: 414126.5556 | G25: 14550.12435 | I25: 27056.44441 | J25: 732051184.1
A26: 1997Q3 | B26: 19 | C26: 443649.1 | D26: 8983.452036 | E26: 434665.648 | F26: 434665.648 | G26: 15149.02115 | I26: 8983.452036 | J26: 80702410.49
A27: 1997Q4 | B27: 20 | C27: 473921.5 | D27: 14464.09853 | E27: 459457.4015 | F27: 459457.4015 | G27: 16113.29439 | I27: 14464.09853 | J27: 209210146.3
A28: 1998Q1 | B28: 21 | C28: 493387.1 | D28: 10689.84249 | E28: 482697.2575 | F28: 482697.2575 | G28: 16825.95055 | I28: 10689.84249 | J28: 114272732.4
A29: 1998Q2 | B29: 22 | C29: 512073.8 | D29: 7530.35516 | E29: 504543.4448 | F29: 504543.4448 | G29: 17327.97423 | I29: 7530.35516 | J29: 56706248.84
A30: 1998Q3 | B30: 23 | C30: 527451.8 | D30: 3348.228558 | E30: 524103.5714 | F30: 524103.5714 | G30: 17551.18947 | I30: 3348.228558 | J30: 11210634.48
A31: 1998Q4 | B31: 24 | C31: 549745.5 | D31: 4854.443455 | E31: 544891.0565 | F31: 544891.0565 | G31: 17874.81903 | I31: 4854.443455 | J31: 23565621.25
A32: 1999Q1 | B32: 25 | C32: 559644.4 | D32: -1872.885346 | E32: 561517.2853 | F32: 561517.2853 | G32: 17749.96001 | I32: 1872.885346 | J32: 3507699.519
A33: 1999Q2 | B33: 26 | C33: 554565.3 | D33: -14821.16721 | E33: 569386.4672 | F33: 569386.4672 | G33: 16761.88219 | I33: 14821.16721 | J33: 219666997.5
A34: 1999Q3 | B34: 27 | C34: 542409.4 | D34: -26243.36964 | E34: 568652.7696 | F34: 568652.7696 | G34: 15012.32422 | I34: 26243.36964 | J34: 688714450.2
A35: 1999Q4 | B35: 28 | C35: 536933.7 | D35: -28038.83632 | E35: 564972.5363 | F35: 564972.5363 | G35: 13143.06846 | I35: 28038.83632 | J35: 786176342
A36: 2000Q1 | B36: 29 | C36: 548175 | D36: -17964.36287 | E36: 566139.3629 | F36: 566139.3629 | G36: 11945.44427 | I36: 17964.36287 | J36: 322718333.2
A37: 2000Q2 | B37: 30 | C37: 543395.4 | D37: -20813.64428 | E37: 564209.0443 | F37: 564209.0443 | G37: 10557.86799 | I37: 20813.64428 | J37: 433207788.4
A38: 2000Q3 | B38: 31 | C38: 547678.9 | D38: -16252.80736 | E38: 563931.7074 | F38: 563931.7074 | G38: 9474.347495 | I38: 16252.80736 | J38: 264153747.1
A39: 2000Q4 | B39: 32 | C39: 549152.9 | D39: -14551.89291 | E39: 563704.7929 | F39: 563704.7929 | G39: 8504.221301 | I39: 14551.89291 | J39: 211757587.4
A40: 2001Q1 | B40: 33 | C40: 568758.9 | D40: =C40-E40 -> -2070.068529 | E40: 570828.9685 | F40: 570828.9685 | G40: 8366.216733 | I40: =ABS(D40) -> 2070.068529 | J40: =D40*D40 -> 4285183.716
A41: 2001Q2 | B41: 34 | C41: 583195.2 | D41: 2400.008843 | E41: 580795.1912 | F41: =$C$1*(C41)+(1-$C$1)*(F40+G40) -> 580795.1912 | G41: =$E$1*(F41-F40)+(1-$E$1)*G40 -> 8526.217322 | I41: 2400.008843 | J41: 5760042.446
A42: 2001Q3 | B42: 35 | C42: 589675.9 | D42: 212.6949125 | E42: 589463.2051 | F42: 589463.2051 | G42: 8540.396983 | I42: 212.6949125 | J42: 45239.1258
A43: 2001Q4 | B43: 36 | C43: 595970.9 | D43: -1219.621242 | E43: 597190.5212 | F43: 597190.5212 | G43: 8459.0889 | I43: 1219.621242 | J43: 1487475.974
A44: 2002Q1 | B44: 37 | C44: 596536.5 | D44: -5467.866085 | E44: 602004.3661 | F44: 602004.3661 | G44: 8094.564494 | I44: 5467.866085 | J44: 29897559.53
A45: 2002Q2 | B45: 38 | C45: 594155.3 | D45: -9566.178348 | E45: 603721.4783 | F45: 603721.4783 | G45: 7456.819271 | I45: 9566.178348 | J45: 91511768.18
A46: 2002Q3 | B46: 39 | C46: 580665.6 | D46: -18307.61857 | E46: 598973.2186 | F46: 598973.2186 | G46: 6236.311366 | I46: 18307.61857 | J46: 335168897.8
A47: 2002Q4 | B47: 40 | C47: 567335.8 | D47: -22724.23796 | E47: 590060.038 | F47: 590060.038 | G47: 4721.362169 | I47: 22724.23796 | J47: 516390991
A48: 2003Q1 | B48: 41 | C48: 560701.5 | D48: -20447.94008 | E48: 581149.4401 | F48: 581149.4401 | G48: 3358.166164 | I48: 20447.94008 | J48: 418118253.5
A49: 2003Q2 | B49: 42 | C49: 553728.3 | D49: -18467.58375 | E49: 572195.8837 | F49: 572195.8837 | G49: 2126.993914 | I49: 18467.58375 | J49: 341051649.4
A50: 2003Q3 | B50: 43 | C50: 548450.7 | D50: -15523.3066 | E50: 563974.0066 | F50: 563974.0066 | G50: 1092.106808 | I50: 15523.3066 | J50: 240973047.7
A51: 2003Q4 | B51: 44 | C51: 558026.2 | D51: -4223.948042 | E51: 562250.148 | F51: 562250.148 | G51: 810.5102714 | I51: 4223.948042 | J51: 17841737.06
A52: 2004Q1 | B52: 45 | C52: 557442.5 | D52: -3370.894988 | E52: 560813.395 | F52: 560813.395 | G52: 585.7839389 | I52: 3370.894988 | J52: 11362933.02
A53: 2004Q2 | B53: 46 | C53: 563668.2 | D53: 1361.412644 | E53: 562306.7874 | F53: 562306.7874 | G53: 676.5447818 | I53: 1361.412644 | J53: 1853444.387
A54: 2004Q3 | B54: 47 | C54: 569176.8 | D54: 3716.080717 | E54: 565460.7193 | F54: 565460.7193 | G54: 924.2834963 | I54: 3716.080717 | J54: 13809255.9
A55: 2004Q4 | B55: 48 | C55: 587564.8 | D55: 12707.87833 | E55: 574856.9217 | F55: 574856.9217 | G55: 1771.475385 | I55: 12707.87833 | J55: 161490171.7
A56: 2005Q1 | B56: 49 | C56: 584631.3 | D56: 4801.741768 | E56: =F56+L56 -> 579829.5582 | F56: =$C$1*(C56)+(1-$C$1)*(F55+G55) -> 579829.5582 | G56: =$E$1*(F56-F55)+(1-$E$1)*G55 -> 2091.591503 | I56: 4801.741768 | J56: 23056724.01
A57: 2005Q2 | B57: 50 | C57: 589489.7 | D57: 4541.130159 | E57: 584948.5698 | F57: 584948.5698 | G57: 2394.333514 | I57: 4541.130159 | J57: 20621863.12
A58: 2005Q3 | B58: 51 | C58: 582149.8 | D58: -3115.862013 | E58: 585265.662 | F58: 585265.662 | G58: 2186.609379 | I58: 3115.862013 | J58: 9708596.082
A59: 2005Q4 | B59: 52 | C59: 599177.5 | D59: 7035.137165 | E59: 592142.3628 | F59: 592142.3628 | G59: 2655.618524 | I59: 7035.137165 | J59: 49493154.93
A60: 2006Q1 | B60: 53 | C60: 597108 | D60: 1386.011185 | E60: 595721.9888 | F60: 595721.9888 | G60: 2748.019269 | I60: 1386.011185 | J60: 1921027.004
A61: 2006Q2 | B61: 54 | C61: 604796.4 | D61: 3795.835149 | E61: 601000.5649 | F61: 601000.5649 | G61: 3001.074946 | I61: 3795.835149 | J61: 14408364.48
A62: 2006Q3 | B62: 55 | C62: 606284.6 | D62: 1369.776122 | E62: 604914.8239 | F62: 604914.8239 | G62: 3092.393354 | I62: 1369.776122 | J62: 1876286.624
A63: 2006Q4 | B63: 56 | C63: 630641.9 | D63: 13580.80966 | E63: 617061.0903 | F63: 617061.0903 | G63: 3997.780665 | I63: 13580.80966 | J63: 184438391
A64: 2007Q1 | B64: 57 | C64: 636801.4 | D64: 9445.517397 | E64: =F64+L64 -> 627355.8826 | F64: =$C$1*(C64)+(1-$C$1)*(F63+G63) -> 627355.8826 | G64: =$E$1*(F64-F63)+(1-$E$1)*G63 -> 4627.481825 | I64: 9445.517397 | J64: 89217798.91
A65: 2007Q2 | B65: 58
A66: 2007Q3 | B66: 59
A67: 2007Q4 | B67: 60
C68: =SUM(C8:C67)/57 -> 473009.0649 | D68: =SUM(D8:D67)/57 -> 1076.521533 | E68: =SUM(E8:E67) -> 26900154.97 | F68: =SUM(F8:F67) -> 26900154.97 | G68: =SUM(G8:G67) -> 411195.9462 | I68: =SUM(I8:I67)/57 -> 10394.64235 | J68: =SUM(J8:J67)/57 -> 169111704.8
C69: yprum | D69: ME | I69: MAE | J69: MSE
